bitfinex/quotes_ETHUSD_20220226
["timestamp","ask_amount","ask_price","bid_price","bid_amount"]
[1645912525720,0.35782942,2826.9,2826.2,7.5856]
[1645912525919,0.0040728,2826.5,2826.2,7.5856]
[1645912526922,0.00372942,2826.8,2826.2,7.5856]
[1645912527120,0.0040728,2826.5,2826.2,7.5856]
[1645912527524,0.0040728,2826.5,2826.2,7.0766]
[1645912527525,0.3581728,2826.5,2826.2,7.0766]
[1645912527722,3.5,2826.4,2826.2,7.0766]
[1645912527994,0.3581728,2826.5,2826.2,7.0766]
[1645912528192,4.99546357,2826.4,2826.2,7.0766]
[1645912528491,0.0040728,2826.4,2826.2,7.0766]
[1645912528693,3.5040728,2826.4,2826.2,7.0766]
[1645912528896,0.0040728,2826.4,2826.2,7.0766]
[1645912529296,0.3541,2826.5,2826.2,7.0766]
[1645912529494,1.49953289,2826.4,2826.2,7.0766]
[1645912529693,0.0040728,2826.4,2826.2,7.0766]
[1645912529897,1.49545747,2826.3,2826.2,7.0766]
[1645912530696,0.00407273,2826.4,2826.2,7.0766]
[1645912531733,0.3541,2826.5,2826.2,5.48151222]
[1645912531916,0.0040728,2826.4,2826.2,5.48151222]
[1645912532119,3.5040728,2826.4,2826.2,5.48151222]
[1645912532318,3.4540728,2826.4,2826.2,5.48151222]
[1645912532517,0.3541,2826.5,2826.2,5.48151222]
[1645912532718,1.49541772,2826.4,2826.2,5.48151222]
[1645912535489,3.5,2826.3,2826.2,5.48151222]
[1645912535684,4.99541772,2826.3,2826.2,5.48151222]
[1645912536185,7.0342013,2826.3,2826.2,0.58111222]
[1645912537391,7.1757013,2826.3,2826.2,0.58111222]
[1645912537588,6.13691772,2826.3,2826.2,0.58111222]
[1645912540116,7.39292293,2826.3,2826.2,0.58111222]
[1645912541826,6.13691772,2826.3,2826.2,0.58111222]
[1645912542523,5.99541772,2826.3,2826.2,0.58111222]
[1645912543781,6.66069919,2826.3,2826.2,0.58111222]
[1645912544486,17.45069919,2826.3,2826.2,0.58111222]
[1645912544682,0.3541,2826.0,2825.4,0.02230311]
[1645912544882,4.99541772,2825.9,2824.7,0.509]
[1645912545083,1.49541772,2825.8,2824.7,0.509]
[1645912545282,3.5,2825.7,2825.4,0.02230311]
[1645912545483,1.49541772,2825.6,2825.4,0.02230311]
[1645912546081,1.49541772,2825.6,2824.7,0.509]
[1645912546282,1.49541772,2825.6,2824.9,0.02230538]
[1645912546482,1.49541772,2825.5,2824.9,0.02230538]
[1645912546722,1.49541772,2825.4,2824.9,0.02230538]
[1645912546913,3.5,2825.8,2824.9,0.02230538]
[1645912547117,1.49582156,2825.7,2824.9,0.02230538]
[1645912547318,3.5,2825.6,2824.6,0.25]
[1645912547516,1.49582156,2825.5,2824.5,8.59297708]
[1645912547716,1.49582156,2825.5,2824.8,0.02230631]
[1645912548518,1.49582156,2825.5,2824.5,5.4152]
[1645912548718,1.49582156,2825.5,2824.6,1.27558465]
[1645912548917,1.49582156,2825.5,2824.6,1.78458465]
[1645912549521,3.5,2825.6,2824.6,1.78458465]
[1645912549724,3.5,2825.6,2824.6,1.76227711]
[1645912550123,1.49581615,2825.5,2824.6,1.76227711]
[1645912550774,3.5,2825.6,2824.6,1.76227711]
[1645912550974,1.49582325,2825.5,2824.6,1.76227711]
[1645912551574,3.5,2825.6,2824.6,1.76227711]
[1645912551575,0.17452556,2825.8,2824.6,3.00165711]
[1645912551777,10.0,2826.0,2824.6,7.54234481]
[1645912551975,1.49566462,2825.9,2824.6,7.54234481]
[1645912552176,1.49566462,2825.9,2824.8,0.3541]
[1645912552379,1.49566462,2825.9,2825.0,0.3541]
[1645912552577,1.49566462,2825.9,2825.1,0.8631]
[1645912552776,1.49566462,2825.9,2825.3,1.06515654]
[1645912552979,1.49566462,2825.9,2825.4,0.509]
[1645912553186,1.49566462,2825.9,2825.4,2.1631]
[1645912553383,10.0,2826.0,2825.4,2.1631]
[1645912553980,10.0,2826.0,2825.8,1.17658476]
[1645912554223,10.0,2826.0,2825.9,0.509]
[1645912555616,10.0,2826.0,2825.9,1.1631]
[1645912557422,10.0,2826.0,2825.9,1.16309973]
[1645912557820,10.0,2826.0,2825.9,2.16309973]
[1645912559085,10.0,2826.0,2825.9,2.68816209]
[1645912559682,10.0,2826.0,2825.9,3.68816209]
[1645912559883,10.0,2826.0,2825.9,2.33406209]
[1645912560092,10.0,2826.0,2825.9,0.80899973]
[1645912560283,10.0,2826.0,2825.9,0.509]
[1645912562633,10.0,2826.0,2825.7,0.3]
[1645912562831,0.1414,2826.8,2825.8,11.0]
[1645912563042,0.00376194,2826.6,2825.9,0.88483]
[1645912563238,1.49916667,2826.7,2826.4,6.7111]
[1645912563436,0.82567935,2826.7,2826.4,2.12323]
[1645912563642,0.00376194,2826.9,2826.5,7.5849]
[1645912563839,9.60373231,2827.0,2826.5,7.0759]
[1645912564235,9.74513231,2827.0,2826.5,5.48086494]
[1645912564935,11.41034708,2827.0,2826.5,5.48086494]
[1645912565139,11.26894708,2827.0,2826.5,5.48086494]
[1645912565575,22.05894708,2827.0,2826.5,5.48086494]
[1645912565775,22.05894708,2827.0,2825.3,0.77424969]
[1645912565776,0.3541,2826.5,2825.3,0.77424969]
[1645912565978,0.3541,2826.3,2825.3,0.509]
[1645912566172,0.3541,2826.3,2825.2,4.5946]
[1645912566173,0.3541,2826.1,2825.2,0.25]
[1645912566373,0.3541,2826.1,2824.9,1.1843]
[1645912566776,0.3541,2826.1,2825.0,0.88518]
[1645912566974,0.1414,2826.3,2825.5,0.00559857]
[1645912566975,0.4955,2826.3,2825.5,0.00559857]
[1645912567573,0.1414,2826.3,2825.5,0.00559857]
[1645912567780,0.1414,2826.3,2825.0,1.39418]
[1645912567976,0.1414,2826.3,2825.0,1.69418]
[1645912568182,0.1414,2826.3,2825.8,0.00438374]
[1645912568980,0.1414,2826.3,2825.3,0.8851]
[1645912569243,0.1414,2826.3,2825.8,0.00438374]
[1645912569833,0.16265472,2826.4,2825.8,0.00438374]
[1645912570033,0.00376194,2826.4,2825.8,0.00438374]
[1645912570238,0.3541,2826.5,2825.4,1.18648844]
[1645912570440,0.00376194,2826.4,2825.8,0.00438374]
[1645912570634,0.19025662,2826.6,2825.8,0.00438374]
[1645912570835,0.00376194,2826.6,2825.8,0.00438374]
[1645912571034,0.45416194,2826.7,2825.8,0.00438374]
[1645912571434,0.45416194,2826.7,2825.6,0.88501]
[1645912571635,0.00406203,2826.6,2825.8,0.00560054]
[1645912571833,0.00406203,2826.6,2825.8,0.51460054]
[1645912572635,0.80826194,2826.7,2825.8,0.51460054]
[1645912572636,0.80826194,2826.7,2825.8,0.509]
[1645912572837,0.00406196,2826.6,2825.8,0.51460051]
[1645912573469,0.00406196,2826.6,2825.8,1.69952051]
[1645912573668,0.00406196,2826.6,2825.9,0.1415]
[1645912573867,0.00376194,2826.7,2826.0,0.509]
[1645912574068,0.00406196,2826.6,2826.2,1.0483202]
[1645912574269,0.00406196,2826.6,2826.2,1.5573202]
[1645912574668,0.00406196,2826.6,2826.2,0.509]
[1645912575068,0.00376194,2826.8,2826.2,0.509]
[1645912575270,0.00406225,2826.6,2826.2,0.509]
[1645912575473,0.00406225,2826.6,2825.9,0.509]
[1645912575676,0.00406225,2826.6,2825.8,1.1893006]
[1645912576272,0.00376194,2826.8,2825.8,1.1837]
[1645912576470,0.00406196,2826.6,2825.8,1.18930051]
[1645912577538,0.00376194,2826.8,2825.8,1.1837]
[1645912577743,0.00406196,2826.6,2825.8,1.18930051]
[1645912578744,0.00376194,2826.8,2825.8,1.3251]
[1645912578943,0.00406196,2826.6,2825.8,1.33070051]
[1645912579742,0.00406196,2826.6,2825.8,1.3251]
[1645912579943,0.00376194,2826.8,2825.8,1.3251]
[1645912580145,0.00406196,2826.6,2825.8,1.33070051]
[1645912580564,0.00406196,2826.6,2825.9,0.509]
[1645912580765,0.00406196,2826.6,2826.0,1.40111905]
[1645912580968,0.00376194,2826.8,2826.0,1.35111905]
[1645912581367,0.00406203,2826.6,2826.0,1.35111905]
[1645912581766,0.00406203,2826.6,2825.8,1.18930054]
[1645912581969,0.00406203,2826.6,2825.9,0.509]
[1645912582168,0.00376194,2826.8,2825.9,0.509]
[1645912582569,0.00406196,2826.6,2825.9,0.509]
[1645912583170,0.00406196,2826.6,2826.2,1.1261891]
[1645912583372,0.00376194,2826.8,2826.2,1.1261891]
[1645912583576,3.83342756,2826.9,2826.2,1.1261891]
[1645912583770,0.00406203,2826.6,2826.2,1.1261891]
[1645912583973,1.4953061,2826.5,2826.2,1.1261891]
[1645912584631,1.4953061,2826.5,2825.9,0.509]
[1645912584832,1.4953061,2826.4,2825.9,0.509]
[1645912585133,0.00782412,2826.6,2825.9,0.509]
[1645912585334,1.49529915,2826.5,2825.9,0.509]
[1645912585731,1.49529915,2826.5,2826.0,1.07174978]
[1645912586136,1.49529915,2826.4,2826.0,1.07174978]
[1645912586335,1.49529915,2826.3,2826.0,1.07174978]
[1645912586535,0.0078239,2826.6,2825.9,0.509]
[1645912586733,1.49530407,2826.5,2825.9,0.509]
[1645912587333,1.49530407,2826.4,2825.9,0.509]
[1645912587534,0.00406196,2826.6,2825.9,0.509]
[1645912587733,1.49529255,2826.5,2825.8,0.65600051]
[1645912587973,1.49529255,2826.5,2826.0,1.19335484]
[1645912588372,1.49529255,2826.4,2825.8,0.6504]
[1645912588572,0.00376194,2826.8,2825.8,0.6504]
[1645912588776,1.49905512,2826.8,2825.8,0.6504]
[1645912588979,0.3541,2826.6,2825.6,4.2434]
[1645912589176,0.3541,2826.2,2825.3,4.7074]
[1645912589373,4.99529318,2826.1,2825.3,4.7074]
[1645912589574,1.49529318,2826.0,2825.3,4.7074]
[1645912589776,1.49529318,2826.0,2825.8,0.00559921]
[1645912589976,0.00861447,2825.7,2825.5,0.02239859]
[1645912590575,0.00861447,2825.7,2825.1,1.4397]
[1645912590775,0.00861447,2825.7,2825.1,1.4897]
[1645912591576,0.00861447,2825.7,2825.1,2.91711833]
[1645912594428,0.00861447,2825.7,2825.3,0.00559863]
[1645912595585,0.00861447,2825.7,2824.6,1.51154969]
[1645912595586,1.49562287,2825.6,2824.6,1.51154969]
[1645912595785,1.82455263,2825.6,2825.4,0.00559848]
[1645912595989,4.99562287,2825.5,2825.4,0.00559848]
[1645912596386,5.99562287,2825.5,2825.4,0.00559848]
[1645912596590,5.99562287,2825.5,2824.6,1.2463]
[1645912596887,1.49562287,2825.4,2825.3,0.00559856]
[1645912597586,4.99562287,2825.4,2825.3,0.00559856]
[1645912597787,4.99562287,2825.4,2824.6,1.2463]
[1645912597989,1.49562287,2825.3,2824.6,1.2463]
[1645912598189,1.49562287,2825.3,2825.2,0.00559871]
[1645912598388,4.99562287,2825.4,2825.2,0.00559871]
[1645912598589,1.49562287,2825.3,2825.2,0.00559871]
[1645912598991,0.17865995,2825.5,2824.4,7.36]
[1645912599232,1.49584976,2825.4,2824.4,7.36]
[1645912599417,3.5,2825.3,2824.4,7.3379977]
[1645912599622,3.5,2825.3,2824.3,7.91]
[1645912599822,3.8541,2825.5,2824.3,7.61]
[1645912600021,1.49583269,2825.4,2824.3,7.61]
[1645912600221,3.5,2825.3,2824.3,7.36]
[1645912601321,0.3541,2825.2,2824.3,7.36]
[1645912602526,0.3541,2825.1,2824.3,7.36]
[1645912602728,0.18571548,2825.2,2824.3,7.36]
[1645912602969,0.00414638,2824.9,2824.6,0.00559974]
[1645912603774,3.6416,2825.6,2824.5,0.88541]
[1645912603977,1.49581281,2825.5,2824.5,1.7707511]
[1645912604174,0.14681443,2825.7,2824.6,0.00559974]
[1645912604175,0.00414638,2824.9,2824.6,0.00559974]
[1645912604378,0.00414638,2824.9,2824.7,1.0524498]
[1645912605174,0.14681443,2825.7,2824.7,1.0524498]
[1645912605375,0.00414638,2824.9,2824.7,1.0524498]
[1645912605576,0.00414638,2824.9,2824.6,0.00559976]
[1645912606174,3.5,2825.5,2824.5,2.9188511]
[1645912606376,0.35340462,2825.7,2824.5,2.9188511]
[1645912606377,0.14681443,2825.7,2824.5,2.9188511]
[1645912606577,0.00414638,2824.9,2824.8,1.06935175]
[1645912606822,0.00414638,2824.9,2824.6,0.00559974]
[1645912607423,3.64681443,2825.7,2824.5,2.9188511]
[1645912607622,1.49577419,2825.6,2824.5,2.9188511]
[1645912607830,0.00414638,2824.9,2824.7,1.3425359]
[1645912608527,0.00414638,2824.9,2824.6,0.00559974]
[1645912608726,3.64681443,2825.7,2824.5,2.9188511]
[1645912608927,0.00414638,2824.9,2824.6,0.00559976]
[1645912609726,0.00414638,2824.9,2824.7,1.20494434]
[1645912609938,3.64681443,2825.7,2824.7,1.20494434]
[1645912610130,0.00414638,2824.9,2824.7,1.20494434]
[1645912611166,3.78821443,2825.7,2824.7,1.20494434]
[1645912611467,0.00414638,2824.9,2824.7,1.20494434]
[1645912611667,0.00414638,2824.9,2824.6,0.00559976]
[1645912612374,3.78821443,2825.7,2824.5,3.7819511]
[1645912612574,0.00414638,2824.9,2824.6,0.00559974]
[1645912613479,3.64681443,2825.7,2824.8,1.4429155]
[1645912613675,0.00414638,2824.9,2824.6,0.00559974]
[1645912614752,3.8541,2825.3,2824.3,7.36339829]
[1645912614937,0.00414638,2824.9,2824.6,0.00559974]
[1645912615941,4.5,2825.1,2824.1,0.00339829]
[1645912616140,0.00414638,2824.9,2824.6,0.00559974]
[1645912617141,4.8541,2825.1,2824.1,0.00339829]
[1645912617349,0.00414638,2824.9,2824.6,0.00559974]
[1645912617542,3.50414638,2824.9,2824.6,0.00559974]
[1645912617847,4.50414638,2824.9,2824.6,0.00559974]
[1645912618278,4.5,2824.9,2823.9,0.00339829]
[1645912618478,4.40414638,2824.9,2824.6,0.00559974]
[1645912619481,4.4,2824.9,2823.9,0.00339829]
[1645912619678,4.40414638,2824.9,2824.6,0.00559974]
[1645912620781,4.40414638,2824.9,2823.9,0.00339829]
[1645912620782,4.4,2824.9,2823.9,0.00339829]
[1645912620983,4.40414638,2824.9,2824.6,0.00559974]
[1645912621389,0.00414638,2824.9,2824.6,0.00559974]
[1645912621831,1.1761,2825.4,2824.6,0.509]
[1645912622033,0.61382184,2825.6,2824.6,0.509]
[1645912622237,1.49586165,2825.5,2824.9,1.27955686]
[1645912622757,3.64681443,2825.7,2824.9,1.78855686]
[1645912622758,0.00861447,2825.7,2824.9,1.78855686]
[1645912622936,0.00861447,2825.7,2824.9,2.14265686]
[1645912622937,1.49577242,2825.6,2824.9,2.14265686]
[1645912623135,0.00861447,2825.7,2824.9,2.14265686]
[1645912623437,0.00414638,2825.4,2824.9,2.28405686]
[1645912623634,0.00414638,2825.4,2825.0,0.3541]
[1645912623834,0.00414638,2825.4,2825.1,0.509]
[1645912624435,0.00861447,2825.7,2825.1,0.509]
[1645912624636,0.00414638,2825.4,2825.1,0.509]
[1645912625575,0.00861447,2825.7,2825.1,0.509]
[1645912625779,0.00414638,2825.4,2825.1,0.509]
[1645912626774,0.00861447,2825.7,2825.1,0.509]
[1645912626975,0.00414638,2825.4,2825.1,0.509]
[1645912627979,0.00861447,2825.7,2825.1,0.509]
[1645912628183,0.00414638,2825.4,2825.1,0.509]
[1645912629084,0.00861447,2825.7,2825.1,0.509]
[1645912629327,0.00414638,2825.4,2825.1,0.509]
[1645912630330,0.00861447,2825.7,2825.1,0.509]
[1645912630526,0.00414638,2825.4,2825.1,0.509]
[1645912631526,0.00861447,2825.7,2825.1,0.509]
[1645912631727,0.00414638,2825.4,2825.1,0.509]
[1645912632730,0.00861447,2825.7,2825.1,0.509]
[1645912632980,0.00414638,2825.4,2825.1,0.509]
[1645912633972,0.00861447,2825.7,2825.1,0.509]
[1645912634173,0.00414638,2825.4,2825.1,0.509]
[1645912635174,0.00861447,2825.7,2825.1,0.509]
[1645912635374,0.00414638,2825.4,2825.1,0.509]
[1645912636374,0.00861447,2825.7,2825.1,0.509]
[1645912636577,0.00414638,2825.4,2825.1,0.509]
[1645912637423,0.00414638,2825.4,2825.0,1.2393]
[1645912637623,0.00861447,2825.7,2825.0,1.7483]
[1645912637822,0.00414638,2825.4,2825.0,1.7483]
[1645912638727,0.00861447,2825.7,2825.0,1.7483]
[1645912638926,0.00414638,2825.3,2825.0,1.7483]
[1645912639928,0.00861447,2825.7,2825.0,1.7483]
[1645912640229,0.00414638,2825.3,2825.0,1.7483]
[1645912641082,0.00861447,2825.7,2825.0,1.7483]
[1645912641581,0.00414638,2825.3,2825.0,1.7483]
[1645912641781,0.00414638,2825.3,2825.0,2.0483]
[1645912642178,0.00414638,2825.3,2825.0,1.7483]
[1645912642380,0.00861447,2825.7,2825.0,2.0483]
[1645912642581,0.00414638,2825.3,2825.0,2.0483]
[1645912642981,0.00290527,2825.3,2825.0,2.0483]
[1645912643588,0.00861447,2825.7,2825.0,1.7483]
[1645912643790,0.00861447,2825.7,2825.0,2.0483]
[1645912643988,1.49564244,2825.6,2825.0,2.0483]
[1645912644237,0.00861447,2825.7,2825.0,2.0483]
[1645912645232,0.00861447,2825.7,2825.0,1.7483]
[1645912645434,0.00861447,2825.7,2825.0,2.0483]
[1645912646334,0.00124391,2825.5,2825.0,1.7483]
[1645912646534,0.00124391,2825.5,2825.0,2.0483]
[1645912646933,0.00124391,2825.5,2825.0,1.7483]
[1645912647134,0.00861447,2825.7,2825.0,2.0483]
[1645912647335,0.00367614,2825.4,2825.0,2.0483]
[1645912647535,0.00367614,2825.4,2825.1,0.3]
[1645912647736,0.00367614,2825.4,2825.1,0.809]
[1645912648376,0.00861447,2825.7,2825.1,0.809]
[1645912648580,0.00367614,2825.4,2825.1,0.509]
[1645912648778,0.00367614,2825.4,2825.1,0.809]
[1645912649580,0.00861447,2825.7,2825.1,1.1631]
[1645912649778,0.00367614,2825.4,2825.1,1.1631]
[1645912650780,0.00861447,2825.7,2825.2,1.65596733]
[1645912650979,0.00367614,2825.4,2825.3,0.509]
[1645912651183,0.00367614,2825.4,2825.3,1.69408]
[1645912652018,0.00861447,2825.7,2825.3,2.57911]
[1645912652221,0.00342138,2825.5,2825.3,2.87911]
[1645912653224,0.00861447,2825.7,2825.3,4.10561]
[1645912653424,0.00342138,2825.5,2825.3,4.10561]
[1645912654324,0.00861447,2825.7,2825.3,4.10561]
[1645912654523,0.00342138,2825.5,2825.3,4.10561]
[1645912655572,0.00861447,2825.7,2825.3,4.10561]
[1645912655776,0.00345818,2825.5,2825.3,4.10561]
[1645912656872,1.49539548,2826.3,2825.3,4.10561]
[1645912657072,0.00345818,2825.5,2825.3,4.10561]
[1645912657671,0.00345818,2825.5,2825.3,4.9906478]
[1645912657872,1.49539586,2826.3,2825.3,4.9906478]
[1645912658079,0.00376162,2826.4,2825.3,4.9906478]
[1645912658279,0.00345818,2825.5,2825.3,4.9906478]
[1645912659236,3.8541,2826.2,2825.3,1.7355]
[1645912659436,3.8541,2826.2,2825.3,1.2265]
[1645912659437,0.00345286,2825.5,2825.3,1.2265]
[1645912659833,0.00345286,2825.5,2824.9,0.88865628]
[1645912660035,0.00345286,2825.5,2824.9,0.88524]
[1645912660234,0.00345286,2825.5,2824.9,1.77046]
[1645912660436,0.3541,2825.8,2824.9,1.77046]
[1645912660638,0.00345286,2825.3,2824.9,1.77046]
[1645912661039,0.00345286,2825.3,2824.9,2.07046]
[1645912661643,3.5,2825.9,2824.9,2.07046]
[1645912661838,0.00345286,2825.2,2824.9,2.07046]
[1645912662040,0.00345286,2825.2,2824.9,2.57946]
[1645912662443,0.00345286,2825.2,2824.9,1.69424]
[1645912662742,0.3541,2826.0,2824.9,1.69424]
[1645912662976,4.99556578,2825.9,2824.9,1.69424]
[1645912663171,0.00345366,2825.2,2824.9,2.57946]
[1645912663372,0.00345366,2825.2,2825.0,1.0]
[1645912663774,1.49558677,2825.9,2825.5,0.99654634]
[1645912666580,0.00413464,2825.8,2825.5,0.99654634]
[1645912667621,3.5,2826.0,2825.5,0.99654634]
[1645912667922,0.00413464,2825.8,2825.5,0.99654634]
[1645912668730,3.5,2826.0,2825.5,0.99654634]
[1645912668931,0.00413464,2825.8,2825.5,0.99654634]
[1645912669934,3.50376162,2826.4,2825.5,0.99654634]
[1645912670132,0.00413464,2825.8,2825.5,0.99654634]
[1645912671108,3.50376162,2826.4,2825.5,0.99654634]
[1645912671306,1.4954745,2826.3,2825.5,0.99654634]
[1645912671510,0.00413464,2825.8,2825.5,0.99654634]
[1645912672308,0.00376162,2826.4,2825.5,0.99654634]
[1645912672508,1.49923086,2826.4,2825.5,0.99654634]
[1645912672711,0.00413464,2825.8,2825.5,0.99654634]
[1645912673511,3.5,2826.3,2825.5,0.99654634]
[1645912673711,1.49548738,2826.2,2825.5,0.99654634]
[1645912673910,0.00413464,2825.8,2825.5,0.99654634]
[1645912674744,0.00376162,2826.4,2825.5,0.99654634]
[1645912674945,1.49923357,2826.4,2825.5,0.99654634]
[1645912675144,0.00413464,2825.8,2825.5,0.99654634]
[1645912675345,0.00413464,2825.8,2825.5,1.50554634]
[1645912675744,0.00413464,2825.8,2825.5,1.64694634]
[1645912675945,0.00376162,2826.4,2825.5,1.64694634]
[1645912676145,1.49917585,2826.4,2825.5,1.64694634]
[1645912676346,0.00413464,2825.8,2825.5,1.50554634]
[1645912676547,5.4625,2826.7,2825.5,1.50554634]
[1645912676548,0.88403111,2827.1,2825.6,11.0]
[1645912676752,2.0,2827.2,2826.1,0.01276059]
[1645912676753,1.49524032,2826.9,2826.1,0.01276059]
[1645912676951,1.49524032,2827.1,2826.5,6.357]
[1645912677152,1.340271,2827.8,2826.6,10.7201]
[1645912677153,1.49524032,2827.0,2826.6,10.7201]
[1645912677348,1.49524032,2827.0,2826.7,0.8631]
[1645912677547,1.49524032,2827.4,2826.8,0.1414]
[1645912677750,1.49487208,2827.3,2826.9,1.3935]
[1645912678013,1.49487208,2827.2,2826.7,1.76893]
[1645912678199,1.49487208,2827.1,2826.4,1.2447]
[1645912678396,1.49487208,2827.0,2826.2,0.1415]
[1645912678597,1.49487208,2826.9,2826.2,1.1415]
[1645912678797,1.49487208,2826.8,2826.2,1.0]
[1645912679098,1.49487208,2826.7,2826.2,1.0]
[1645912679298,0.00412431,2827.1,2826.2,1.0]
[1645912679498,1.49516608,2827.0,2826.2,1.0]
[1645912679703,1.49516608,2826.9,2826.2,1.0]
[1645912679902,0.00412431,2826.6,2826.2,1.0]
[1645912680097,0.00412431,2826.6,2826.2,1.88486]
[1645912680798,0.1414,2827.4,2826.2,1.88486]
[1645912681002,0.00412431,2826.5,2826.2,1.88486]
[1645912681200,0.00412431,2826.5,2826.3,1.39034684]
[1645912681605,0.00412431,2826.5,2826.3,2.27516214]
[1645912682035,0.66303874,2827.4,2826.3,2.27516214]
[1645912682240,0.00412431,2826.5,2826.4,0.88482]
[1645912683239,0.66303874,2827.3,2826.4,0.88482]
[1645912683439,0.00412431,2826.6,2826.4,0.88482]
[1645912684441,0.00374342,2827.2,2826.4,0.88482]
[1645912684641,0.00412431,2826.6,2826.4,0.88482]
[1645912685687,0.00374342,2827.3,2826.3,2.61214684]
[1645912685885,0.00412431,2826.6,2826.3,2.61214684]
[1645912686486,0.00412431,2826.6,2826.3,1.2218]
[1645912686988,0.00374342,2827.3,2826.3,1.2218]
[1645912688191,0.00123792,2826.9,2826.3,1.2218]
[1645912689222,1.44631002,2826.9,2826.7,1.10255274]
[1645912689421,0.00374342,2827.4,2826.3,1.2218]
[1645912689422,0.00123857,2826.7,2826.3,1.2218]
[1645912690424,0.00374342,2827.4,2826.3,1.2218]
[1645912690624,0.00123729,2826.6,2826.5,1.27584661]
[1645912691622,0.00374342,2827.4,2826.5,1.27584661]
[1645912691825,0.00123729,2826.7,2826.5,1.27584661]
[1645912692830,0.00374342,2827.4,2826.5,1.27584661]
[1645912693089,0.00412121,2826.7,2826.5,1.27584661]
[1645912694091,0.00374342,2827.4,2826.5,1.27584661]
[1645912694287,0.00124063,2826.7,2826.5,1.27584661]
[1645912695296,0.00374342,2827.4,2826.5,1.27584661]
[1645912695490,0.00124063,2826.7,2826.5,1.27584661]
[1645912696491,0.00374342,2827.4,2826.5,1.27584661]
[1645912696731,0.00124063,2826.7,2826.5,1.27584661]
[1645912697533,0.00374342,2827.4,2826.5,1.27584661]
[1645912697939,0.00412121,2826.7,2826.5,1.27584661]
[1645912698740,0.00374342,2827.4,2826.5,1.27584661]
[1645912698943,0.00374342,2827.4,2826.7,0.3541]
[1645912699143,0.00374342,2827.4,2826.8,4.3619148]
[1645912699343,0.00374342,2827.7,2827.0,0.3529148]
[1645912699543,0.00374342,2827.5,2827.1,4.3619148]
[1645912699743,0.00374342,2827.7,2827.2,0.509]
[1645912699942,0.5,2827.8,2827.2,4.8934344]
[1645912700242,0.5,2827.8,2827.5,0.88444]
[1645912701490,0.50412121,2827.8,2827.7,1.27910918]
[1645912701689,0.50412121,2827.8,2827.5,0.88444]
[1645912701690,0.31510555,2827.6,2827.5,0.88444]
[1645912701889,0.31510555,2827.6,2827.5,1.97641366]
[1645912703794,0.00374342,2828.3,2827.6,0.88442]
[1645912703994,0.00412121,2827.7,2827.6,0.88442]
[1645912704639,0.00412121,2827.7,2827.6,1.39342]
[1645912704940,0.00374342,2828.5,2827.6,1.39342]
[1645912705140,0.00124062,2827.8,2827.6,1.39342]
[1645912705542,0.00124062,2827.8,2827.6,1.74752]
[1645912705747,0.00124062,2827.8,2827.7,0.03936317]
[1645912705942,0.00374342,2828.5,2827.7,4.40246317]
[1645912706143,0.5,2828.9,2828.0,1.76857]
[1645912706144,0.00374342,2828.8,2828.0,1.76857]
[1645912706346,0.01648238,2828.3,2828.1,1.37450824]
[1645912707342,0.00374342,2828.8,2828.1,1.37450824]
[1645912707543,0.00412121,2828.3,2828.1,1.37450824]
[1645912707747,0.00412121,2828.3,2828.1,4.87450824]
[1645912707978,0.00412121,2828.3,2828.1,1.37450824]
[1645912708185,0.00412121,2828.3,2828.1,1.88350824]
[1645912708391,0.00374342,2828.8,2828.1,1.88350824]
[1645912708583,0.5,2828.9,2828.2,0.8842064]
[1645912708784,0.0202258,2828.8,2828.3,0.88421]
[1645912708984,0.01648238,2828.8,2828.3,1.7684]
[1645912709186,1.49427488,2828.7,2828.3,1.7684]
[1645912709387,1.49427488,2828.7,2828.3,0.88421]
[1645912709790,0.5,2828.9,2828.4,3.5]
[1645912710086,0.5,2828.9,2828.3,4.38421]
[1645912710087,0.00412121,2828.6,2828.3,4.38421]
[1645912710286,0.00412121,2828.6,2828.3,4.89321]
[1645912710485,0.00412121,2828.6,2828.3,1.39321]
[1645912710687,0.00412121,2828.6,2828.3,2.27739]
[1645912710890,0.00374342,2828.8,2828.3,2.27739]
[1645912711089,0.00412121,2828.6,2828.4,1.17374538]
[1645912711287,0.00412121,2828.6,2828.5,0.509]
[1645912712139,0.5,2828.9,2828.5,0.509]
[1645912712438,0.45412121,2828.9,2828.5,0.509]
[1645912714442,0.45412121,2828.9,2828.5,1.39314]
[1645912715681,1.49421464,2828.8,2828.5,1.39314]
[1645912715879,0.00411091,2828.8,2828.5,1.39314]
[1645912716482,3.50411091,2828.8,2828.0,5.8836]
[1645912716686,1.36956786,2828.6,2827.8,3.0155]
[1645912716881,4.9942968,2828.5,2827.8,3.0155]
[1645912717082,3.5,2828.4,2827.5,6.002]
[1645912717281,0.00374342,2828.4,2827.5,6.002]
[1645912717482,1.49817586,2828.6,2827.5,6.002]
[1645912717682,3.5,2828.5,2827.5,6.002]
[1645912717883,1.11183864,2828.3,2827.5,6.002]
[1645912718088,4.99455446,2828.2,2827.2,4.04495]
[1645912718286,4.50374342,2828.2,2827.2,4.04495]
[1645912718695,1.49457152,2828.1,2827.2,4.04495]
[1645912718886,0.00374342,2828.0,2827.2,4.04495]
[1645912721332,0.00374342,2828.1,2827.2,4.04495]
[1645912722028,1.49828615,2828.1,2827.2,4.04495]
[1645912724187,1.49828615,2828.1,2827.2,3.1604]
[1645912725388,4.99828615,2828.1,2827.2,3.1604]
[1645912725590,1.49454273,2828.0,2827.2,3.1604]
[1645912725791,1.49454273,2828.0,2827.0,4.8316]
[1645912725792,3.5,2827.9,2827.0,4.8316]
[1645912725991,1.49454273,2827.8,2826.9,1.1988]
[1645912726388,4.71903357,2827.7,2826.9,1.1988]
[1645912726595,3.50374342,2827.7,2826.9,1.1988]
[1645912726832,1.0,2827.7,2826.7,7.2924]
[1645912727032,0.00374342,2827.6,2826.7,7.0424]
[1645912727233,0.00374342,2827.6,2826.8,0.88467]
[1645912727434,1.49848562,2827.9,2826.8,0.88467]
[1645912727634,4.88611697,2827.8,2826.8,0.88467]
[1645912727835,1.49848562,2827.7,2826.8,0.88467]
[1645912728442,1.49848562,2827.8,2826.8,0.88467]
[1645912728939,2.66255604,2827.8,2826.8,0.88467]
[1645912729147,1.16781384,2827.8,2826.8,0.88467]
[1645912729342,2.16781384,2827.8,2826.8,0.88467]
[1645912729541,1.16781384,2827.8,2826.8,0.88467]